Cogmind - Beta 13 @@@ ROGUE MODE // 2024.05.06 @ 12:02:31 Player: BionicBot Result: Destroyed by G-47 Trooper with Particle Gun Performance ------------- Evolutions (2) 1000 Regions Visited (6) 1200 Robots Destroyed (126) 630 Value Destroyed (4445) 4445 Prototype IDs (10) 200 Alien Tech Used (0) 0 Bonus (1031) 1031 TOTAL SCORE: 8506 Bonus ------- High Alert Combat Kills 298 Follower Combat Kills 33 Entered Garrisons 200 Used RIF Installer 500 Cogmind --------- Core Integrity 0/550 Matter 146/300 Energy 144/150 System Corruption 3% Temperature Cool (27) Movement Walking (122) Location -8/Storage Parts ------- > --- POWER (1) -------- Light Angular Momentum Engine > --- PROPULSION (4) --- Carbon-fiber Leg Carbon-fiber Leg Carbon-fiber Leg Titanium Leg > --- UTILITY (4) ------ Improved Heat Sink Large Storage Unit Medium Reactive Plating Hacking Suite > --- WEAPON (2) ------- Gauss Rifle Gauss Cannon (fused) > --- INVENTORY (15) --- Aluminum Leg Aluminum Leg Improved Signal Interpreter System Shield Relay Coupler [Grunt] (18) Relay Coupler [Sentry] (16) Heavy Particle Gun Heavy Laser Plasma Cannon Gauss Cannon Scatter Rocket Array Improved Datajack Powered Hammer Peak State ------------ > --- POWER ------------ Light Nuclear Core > --- PROPULSION ------- Carbon-fiber Leg Carbon-fiber Leg Carbon-fiber Leg Carbon-fiber Leg > --- UTILITY ---------- Large Storage Unit Insulated Plating Hacking Suite Hacking Suite > --- WEAPON ----------- Gauss Cannon Scatter Rocket Array > --- INVENTORY -------- Light Angular Momentum Engine Aluminum Leg Aluminum Leg Improved Heat Sink Improved Signal Interpreter Medium Reactive Plating System Shield Relay Coupler [Grunt] Relay Coupler [Sentry] Heavy Laser Plasma Cannon Gauss Rifle Gauss Cannon Improved Datajack Powered Hammer [Rating: 40] Favorites ----------- Power Light Ion Engine Engine Light Ion Engine Power Core Light Nuclear Core Propulsion Aluminum Leg Leg Aluminum Leg Utility Hacking Suite Device Improved Heat Sink Storage Large Storage Unit Processor Visual Processing Unit Hackware Hacking Suite Protection Insulated Plating Weapon Gauss Cannon Energy Gun Improved Medium Laser Energy Cannon Plasma Cannon Ballistic Gun Heavy Assault Rifle Ballistic Cannon Gauss Cannon Launcher Concussive RPG Impact Weapon Powered Hammer Build | -11 -10 -9 -8 -8 -8 -8 ------- Run | Yrd Mat Mat Mat Gar Mat Sto Slots Evolved 4 | . . 2 2 . . . Power . | . . . . . . . Propulsion 2 | . . 2 . . . . Utility 2 | . . . 2 . . . Weapon . | . . . . . . . Parts Attached 129 | 7 8 27 32 23 9 23 Power 16 | 1 4 5 2 2 1 1 Engine 13 | 1 4 5 2 . . 1 Core 3 | . . . . 2 1 . Reactor . | . . . . . . . Propulsion 54 | 2 1 12 17 11 2 9 Treads . | . . . . . . . Leg 54 | 2 1 12 17 11 2 9 Wheel . | . . . . . . . Hover . | . . . . . . . Flight . | . . . . . . . Utility 22 | 2 1 2 6 3 2 6 Device 3 | 1 . . . 1 . 1 Storage 4 | 1 . 1 . . 1 1 Processor 1 | . . . 1 . . . Hackware 4 | . 1 1 1 . 1 . Protection 10 | . . . 4 2 . 4 Artifact . | . . . . . . . Weapon 37 | 2 2 8 7 7 4 7 Energy Gun 13 | 1 2 4 2 3 1 . Energy Cannon 3 | . . . 3 . . . Ballistic Gun 8 | 1 . 3 . 1 . 3 Ballistic Cannon 6 | . . . 1 2 2 1 Launcher 2 | . . . 1 . . 1 Special Weapon . | . . . . . . . Impact Weapon 5 | . . 1 . 1 1 2 Slashing Weapon . | . . . . . . . Piercing Weapon . | . . . . . . . Special Melee Weapon . | . . . . . . . Unidentified Prototypes 2 | . . 1 . . . 1 Parts Lost 30 | . 3 3 7 9 3 5 Power 8 | . 2 1 1 2 1 1 Propulsion 9 | . . 1 3 3 1 1 Utility 7 | . 1 . 1 2 . 3 Weapon 6 | . . 1 2 2 1 . Highest Loss Streak 5 | . 1 1 5 5 2 4 To Critical Strikes . | . . . . . . . Average Slot Usage (%) 96 | . 95 94 97 98 98 96 Engine 7 | . 14 10 9 . . 4 Core 2 | . . . . 7 9 4 Leg 35 | . 28 39 34 35 35 34 Device 1 | . 2 . . 3 . 4 Storage 10 | . 14 11 9 9 9 9 Processor 2 | . . . 9 1 . . Hackware 10 | . 7 11 8 9 15 13 Protection 6 | . . . 8 12 11 8 Energy Gun 7 | . 15 9 7 2 4 . Ballistic Gun 7 | . 11 11 4 4 3 5 Ballistic Cannon 4 | . . . 2 9 7 10 Naked Turns . | . . . . . . . Heaviest Build 61 | 12 13 34 47 47 41 61 Greatest Support 62 | 20 20 40 61 55 55 62 Greatest Overweight (x) 15 | . . 1 15 1 . 3 Average Overweight (x) . | . . . . . . . Largest Inventory Capacity 15 | 8 8 15 15 15 15 15 Average Capacity 13 | 7 8 13 15 15 15 15 Most Carried 15 | 3 8 15 15 14 15 15 Average Carried 12 | 1 6 11 14 12 14 13 Final Capacity 15 | 8 8 15 15 15 15 15 Final Carried 15 | 3 8 15 14 14 14 13 Class Distribution -------------------- 75% | Scavenger-Mutant 22% | Mutant Dominant Class ---------------- Mutant | -10/Materials Scavenger-Mutant | -9/Materials Scavenger-Mutant | -8/Materials Scavenger-Mutant | -8/Garrison Scavenger-Mutant | -8/Materials Scavenger-Mutant | -8/Storage Resources | -11 -10 -9 -8 -8 -8 -8 ----------- Run | Yrd Mat Mat Mat Gar Mat Sto Matter Collected 3349 | 279 212 491 802 506 243 816 Remotely . | . . . . . . . Salvage Created 4412 | 56 324 1066 1045 533 305 1083 Parts 263 | 7 29 70 55 32 17 53 Haulers Intercepted 2 | . . 2 . . . . Recyclers Shooed 2 | . . . 1 . . 1 Parts Field Recycled . | . . . . . . . Retrieved Matter . | . . . . . . . Parts Self-Destructed . | . . . . . . . Prevented . | . . . . . . . Kills | -11 -10 -9 -8 -8 -8 -8 ------- Run | Yrd Mat Mat Mat Gar Mat Sto Combat Hostiles Destroyed 111 | . 10 21 29 18 8 25 Melee 2 | . . . . . . 2 Guns 62 | . 10 21 19 4 2 6 Cannons 43 | . . . 10 14 6 13 Classes Destroyed 12 | 1 4 4 1 . . 2 Worker 1 | . . . 1 . . . Tunneler 2 | 2 . . . . . . Hauler 2 | . . 2 . . . . Recycler 2 | . . 1 . . . 1 Operator 4 | . 2 1 1 . . . Watcher 4 | . 2 2 . . . . Swarmer 27 | . 6 4 10 7 . . Grunt 57 | . 4 13 13 8 6 13 Brawler 3 | . . 1 1 . . 1 Duelist 4 | . . . . . . 4 Sentry 19 | . . 3 5 3 2 6 Hunter 1 | . . . . . . 1 Best Kill Streak 7 | 2 5 5 4 6 4 7 Combat Bots Only 7 | . 5 4 4 6 4 7 Max Kills in Single Turn 2 | 1 2 1 1 1 1 2 Gunslinging 1 | . 1 . . . . . Exploded . | . . . . . . . Melee 1 | . . . . . . 1 Uniques/NPCs Destroyed . | . . . . . . . Combat | -11 -10 -9 -8 -8 -8 -8 -------- Run | Yrd Mat Mat Mat Gar Mat Sto Hostile Shots Fired 614 | . 75 96 199 118 38 88 Missed 147 | . 12 24 54 33 4 20 Damage Taken 6559 | . 661 916 1995 1083 581 1323 Core 959 | . 241 165 360 53 15 125 Absorbed by Shields 97 | . . . . 97 . . Ignored by Resistances 16 | . . . . . . 16 Regen/Repaired (Parts) 938 | . . 144 223 . 253 318 Core Remaining (%) 53 | 100 3 58 . . . . Volleys Fired 389 | 3 54 86 112 46 22 66 Largest 2 | 2 2 2 2 2 2 2 Hottest 128 | 60 60 96 128 128 117 117 Shots Fired 751 | 6 105 171 214 83 41 131 Gun 538 | 6 105 171 148 31 20 57 Cannon 212 | . . . 65 52 21 74 Launcher 1 | . . . 1 . . . Special . | . . . . . . . Kinetic 461 | 3 54 84 97 62 33 128 Thermal 258 | 3 51 56 116 21 8 3 Explosive 1 | . . . 1 . . . Electromagnetic 31 | . . 31 . . . . Robot Hit Streak 20 | 4 20 15 14 14 9 8 Robot Miss Streak 5 | . 4 4 4 5 1 3 Penetration Max 1 | . . . . . . 1 Secondary Targets 7 | . 2 3 2 . . . Max Gunslinging Chain 1 | . 1 1 1 . . . Shots Hit Robots 492 | 4 63 116 124 48 29 108 Core Hits 183 | 2 22 40 47 25 13 34 Critical Kills . | . . . . . . . Critical Parts Destroyed 5 | . 1 . . . . 4 Critical Strikes 39 | . 1 3 11 6 5 13 Burn 7 | . . 2 5 . . . Destroy 2 | . 1 . . . . 1 Blast 26 | . . . 6 6 5 9 Corrupt 1 | . . 1 . . . . Smash 3 | . . . . . . 3 Melee Attacks 34 | . . 4 . 2 6 22 Impact 34 | . . 4 . 2 6 22 Slashing . | . . . . . . . Piercing . | . . . . . . . Sneak Attacks . | . . . . . . . Combat Hostiles . | . . . . . . . Follow-up Attacks . | . . . . . . . Damage Inflicted 10366 | 49 771 1956 2565 1304 680 3041 Guns 5387 | 45 771 1807 1439 233 254 838 Cannons 4035 | . . . 1044 1071 426 1494 Explosions 222 | . . 149 73 . . . Melee 643 | . . . . . . 643 Ramming 79 | 4 . . 9 . . 66 Kinetic 6371 | 14 454 869 1214 931 620 2269 Thermal 2871 | 31 317 769 1258 373 60 63 Explosive 73 | . . . 73 . . . Electromagnetic 318 | . . 318 . . . . Impact 654 | . . . 11 . . 643 Slashing . | . . . . . . . Piercing . | . . . . . . . Highest Corruption 3 | . . . . . . 3 Average Corruption 3 | . . . . . . 3 Corruption Purged . | . . . . . . . Corruption Blocked . | . . . . . . . Effects 9 | . . . . . . 9 Message Errors 3 | . . . . . . 3 Matter Fused 3 | . . . . . . 3 Heat Flow Errors 1 | . . . . . . 1 Parts Fused 1 | . . . . . . 1 Misfires 1 | . . . . . . 1 Overload Shots . | . . . . . . . Overflow Damage 281 | . . 30 28 29 . 194 Projectiles 71 | . . . 28 29 . 14 Explosions 30 | . . 30 . . . . Melee 180 | . . . . . . 180 Knockbacks 49 | . . . 13 11 5 20 Impact 6 | . . . . . . 6 Kinetic 39 | . . . 10 11 5 13 Secondary 4 | . . . 3 . . 1 Self-Inflicted Damage 20 | . . . 20 . . . Shots 1 | . . . 1 . . . Rammed . | . . . . . . . Targets Rammed 8 | 1 . 1 3 . . 3 Kicked 8 | 1 . 1 3 . . 3 Crushed . | . . . . . . . Highest Temperature 508 | . 78 219 508 451 335 375 Average Temperature 113 | . 35 63 131 167 152 102 Received Heat Transfer 2760 | . 198 396 783 564 288 531 Effects 29 | . . 2 13 7 4 3 Shutdowns 3 | . . . 3 . . . Energy Bleed 2 | . . 1 . . 1 . Interference 6 | . . 1 . 1 2 2 Matter Decay 4 | . . . 1 2 1 . Short Circuit 2 | . . . 1 . . 1 Damage (major) 12 | . . . 8 4 . . Siege Activations . | . . . . . . . Robots Corrupted . | . . . . . . . Combat Hostiles . | . . . . . . . Parts Fried 1 | . . . . . . 1 Impact Corruptions 11 | . . . 1 . . 10 Robots Melted . | . . . . . . . Combat Hostiles . | . . . . . . . Parts Melted 10 | . 2 3 5 . . . Heat Transferred 6362 | 75 700 1741 2968 656 111 111 Parts Sabotaged . | . . . . . . . Parts Stolen . | . . . . . . . Parts Stripped . | . . . . . . . Power Chain Reactions 2 | . . 2 . . . . Alert | -11 -10 -9 -8 -8 -8 -8 ------- Run | Yrd Mat Mat Mat Gar Mat Sto Peak Influence 805 | 10 230 342 567 805 467 540 Initial 391 | . 6 96 115 313 391 96 Average 248 | 2 95 161 278 553 342 219 Maximum Alert Level 3 | . 1 1 2 3 2 2 Low Security (%) 45 | 100 76 70 26 . 13 54 Level 1 36 | . 23 29 50 22 67 32 Level 2 14 | . . . 22 42 18 12 Level 3 3 | . . . . 35 . . Level 4 . | . . . . . . . Level 5 . | . . . . . . . High Security . | . . . . . . . Max Security . | . . . . . . . Squads Dispatched 16 | . 3 4 4 . . 5 Investigation 4 | . . 2 2 . . . Extermination . | . . . . . . . Reinforcement 10 | . 3 2 2 . . 3 Assault 2 | . . . . . . 2 Garrison . | . . . . . . . Intercept . | . . . . . . . Searches Triggered . | . . . . . . . Construction Impeded 1 | . . . . . . 1 Haulers Reinforced . | . . . . . . . Active Scanning Responses . | . . . . . . . Cargo Convoy Interrupts . | . . . . . . . Stealth | -11 -10 -9 -8 -8 -8 -8 --------- Run | Yrd Mat Mat Mat Gar Mat Sto Distress Signals 9 | . 1 2 3 1 . 2 Communications Jammed . | . . . . . . . Distress Signals . | . . . . . . . Times Spotted 185 | . 17 34 45 27 9 53 Peak Tracking Total 11 | . 5 5 5 11 4 11 Tactical Retreats 16 | . . 3 2 5 . 6 Traps | -11 -10 -9 -8 -8 -8 -8 ------- Run | Yrd Mat Mat Mat Gar Mat Sto Traps Triggered 14 | . 1 1 3 8 . 1 Indirectly . | . . . . . . . Trap Hack Attempts . | . . . . . . . Triggered . | . . . . . . . Disarmed . | . . . . . . . Reprogrammed . | . . . . . . . Reused . | . . . . . . . Traps Extracted . | . . . . . . . Installed . | . . . . . . . Triggered . | . . . . . . . Machines | -11 -10 -9 -8 -8 -8 -8 ---------- Run | Yrd Mat Mat Mat Gar Mat Sto Machines Disabled 11 | . . 2 3 2 . 4 Max in Single Turn 1 | . . 1 1 1 . 1 Garrison Access 2 | . . . . . 1 1 Garrison Relay 1 | . . . . 1 . . Machines Repaired . | . . . . . . . Machines Dismantled . | . . . . . . . Machines Sabotaged . | . . . . . . . Overloaded Fab Kills . | . . . . . . . Hacking | -11 -10 -9 -8 -8 -8 -8 --------- Run | Yrd Mat Mat Mat Gar Mat Sto Machines Accessed 34 | . 3 10 9 1 4 7 Terminals 22 | . 3 7 5 1 2 4 Fabricators . | . . . . . . . Repair Stations 6 | . . 1 2 . 1 2 Recycling Units 1 | . . 1 . . . . Scanalyzers 2 | . . 1 1 . . . Garrison Access 3 | . . . 1 . 1 1 Total Hacks 114 | . 11 39 29 1 12 22 Successful 70 | . 4 25 19 1 8 13 Failed 44 | . 7 14 10 . 4 9 Catastrophic 7 | . 1 2 2 . 1 1 Database Lockouts . | . . . . . . . Manual 40 | . 11 14 7 . 5 3 Terminals 59 | . 11 22 9 1 6 10 Fabricators . | . . . . . . . Repair Stations 38 | . . 8 15 . 4 11 Recycling Units 1 | . . 1 . . . . Scanalyzers 12 | . . 8 4 . . . Garrison Access 4 | . . . 1 . 2 1 Terminal Hacks 25 | . 4 10 4 1 2 4 Record 2 | . . 1 1 . . . Part Schematic 2 | . . . 2 . . . Robot Analysis 4 | . 1 3 . . . . Prototype ID Bank 5 | . 2 1 . . 1 1 Open Door 2 | . . . . 1 . 1 Branch Access Points 2 | . 1 1 . . . . Terminal Index 1 | . . 1 . . . . Garrison Index 1 | . . . 1 . . . Alert Level 1 | . . 1 . . . . Unreport Threat 3 | . . 1 . . 1 1 Locate Traps 1 | . . 1 . . . . Zone Layout 1 | . . . . . . 1 Fabricator Hacks . | . . . . . . . Repair Station Hacks 28 | . . 6 10 . 4 8 Scan Component 14 | . . 3 5 . 2 4 Repair 14 | . . 3 5 . 2 4 Recycling Unit Hacks 1 | . . 1 . . . . Report Inventory 1 | . . 1 . . . . Scanalyzer 12 | . . 8 4 . . . Insert Component 6 | . . 4 2 . . . Analyze 6 | . . 4 2 . . . Garrison Access Hacks 4 | . . . 1 . 2 1 Unlock Access 1 | . . . 1 . . . Seal Access 2 | . . . . . 1 1 Coupler Status 1 | . . . . . 1 . Unauthorized Hacks . | . . . . . . . Terminals . | . . . . . . . Fabricators . | . . . . . . . Repair Stations . | . . . . . . . Recycling Units . | . . . . . . . Scanalyzers . | . . . . . . . Garrison Access . | . . . . . . . Data Cores Recovered 1 | . 1 . . . . . Used . | . . . . . . . Hacking Detections 30 | . 3 9 8 1 3 6 Full Trace Events 1 | . . 1 . . . . Feedback Events . | . . . . . . . Feedback Blocked . | . . . . . . . Robot Schematics Acquired . | . . . . . . . Robots Built . | . . . . . . . Authchips . | . . . . . . . Time . | . . . . . . . Total Robot Build Rating . | . . . . . . . Part Schematics Acquired 6 | . . 3 3 . . . Parts Built . | . . . . . . . Authchips . | . . . . . . . Time . | . . . . . . . Total Part Build Rating . | . . . . . . . Parts Repaired 14 | . . 3 5 . 2 4 Time 471 | . . 78 130 . 82 181 Parts Recycled . | . . . . . . . Recycled Matter . | . . . . . . . Retrieved Matter . | . . . . . . . Retrieved Components . | . . . . . . . Parts Scanalyzed 6 | . . 4 2 . . . Part Schematics Acquired 4 | . . 3 1 . . . Parts Damaged . | . . . . . . . Bothacking | -11 -10 -9 -8 -8 -8 -8 ------------ Run | Yrd Mat Mat Mat Gar Mat Sto Used RIF Installer 1 | . . . . 1 . . Robots Hacked . | . . . . . . . Non-combat . | . . . . . . . Combat . | . . . . . . . Robot Hacks Applied . | . . . . . . . Relay Couplers Released 8 | . . . . 4 2 2 Machine Destruction 8 | . . . . 4 2 2 Fabnet Peak Effective % . | . . . . . . . Robots Rewired . | . . . . . . . Allies Hacked . | . . . . . . . Hacks Repelled . | . . . . . . . Allies | -11 -10 -9 -8 -8 -8 -8 -------- Run | Yrd Mat Mat Mat Gar Mat Sto Total Allies 2 | . . . . . . 2 Largest Group 2 | . . . . . . 2 Highest-Rated Group 62 | . . . . . . 62 Highest-Rated Ally 31 | . . . . . . 31 Total Orders . | . . . . . . . Ally Attacks 18 | . . . . . . 18 Total Damage 270 | . . . . . . 270 Kills 1 | . . . . . . 1 Allies Corrupted . | . . . . . . . Allies Melted . | . . . . . . . Intel | -11 -10 -9 -8 -8 -8 -8 ------- Run | Yrd Mat Mat Mat Gar Mat Sto Robot Analysis Total 4 | . 1 3 . . . . Derelict Logs Recovered . | . . . . . . . Drone Launches . | . . . . . . . Drone Recoveries . | . . . . . . . Exploration | -11 -10 -9 -8 -8 -8 -8 ------------- Run | Yrd Mat Mat Mat Gar Mat Sto Turns Passed 6829 | 105 797 1676 1774 738 515 1224 Spaces Moved 3494 | 69 497 928 865 370 254 511 Core 4 | 3 . . 1 . . . Treads . | . . . . . . . Legs 3490 | 66 497 928 864 370 254 511 Wheels . | . . . . . . . Hover . | . . . . . . . Flight . | . . . . . . . Fastest Speed 50 | 50 120 120 120 120 120 120 Average Speed 123 | 116 120 120 130 125 120 123 Slowest Speed 800 | 120 120 190 800 190 120 330 Overloaded Moves . | . . . . . . . Propulsion Burnouts . | . . . . . . . Robots Hopped . | . . . . . . . Cave-ins Triggered . | . . . . . . . Exploration Rate (%) 45 | 6 71 63 59 38 23 61 Regions Visited 6 Branch Regions 1 Pre-discovered Areas . | . . . . . . . Known Exits Taken 1 | . . . 1 . . . Unknown Exits Taken 4 | 1 1 1 . . 1 . Scrap Searched . | . . . . . . . Spaces Dug 5 | . . 4 . 1 . . Terrain Destroyed 94 | . . 17 30 3 10 34 Melee 5 | . . 4 . 1 . . Projectile 64 | . . . 25 2 10 27 AOE 25 | . . 13 5 . . 7 Terrain Rammed . | . . . . . . . Walls Destroyed . | . . . . . . . Machines Disabled . | . . . . . . . Actions | -11 -10 -9 -8 -8 -8 -8 --------- Run | Yrd Mat Mat Mat Gar Mat Sto Total 5194 | 83 592 1323 1300 553 410 933 Wait 979 | 1 23 237 240 70 115 293 Move 3488 | 69 496 927 864 368 253 511 Hop . | . . . . . . . Pick Up 62 | 3 6 18 20 6 3 6 Fast Attach 43 | 7 2 8 15 1 3 7 Attach 28 | . 2 4 7 8 2 5 Detach 5 | . 1 1 1 . . 2 Swap 58 | . 4 15 10 14 4 11 Drop 66 | . 4 22 28 3 2 7 Fire 389 | 3 54 86 112 46 22 66 Melee 34 | . . 4 . 2 6 22 Ram . | . . . . . . . Kick 7 | . . 1 3 . . 3 Crush . | . . . . . . . Escape Stasis 35 | . . . . 35 . . Rewire . | . . . . . . . Trap . | . . . . . . . Miscellaneous . | . . . . . . . Route ------- -11/Scrapyard -10/Materials (discovered 3 exits: *Mat / *Min x2) -9/Materials (discovered 3 exits: *Mat x2 / *Min) -8/Materials (discovered 3 exits: [*Fac] / *Sto / Gar) -8/Garrison -8/Materials -8/Storage History --------- Turn | Location | Event 2 | -11/Scrapyard | Discovered new exit (range 16) 106 | -11/Scrapyard | Entered Materials 262 | -10/Materials | Identified exit to Mines 318 | -10/Materials | Build established: Mutant 637 | -10/Materials | Core integrity fell below 50% 715 | -10/Materials | Core integrity fell below 20% 886 | -10/Materials | Discovered new exit (range 14) 903 | -10/Materials | Entered another Materials area 903 | -9/Materials | Evolved 2 slots: Propulsion x2 1055 | -9/Materials | Discovered new exit (range 8) 1155 | -9/Materials | Discovered new exit (range 5) 1367 | -9/Materials | Build established: Scavenger-Mutant 1502 | -9/Materials | Discovered new exit (range 10) 1510 | -9/Materials | Identified exit to Mines 1555 | -9/Materials | Repaired Aluminum Leg 1583 | -9/Materials | Repaired Lgt. Ion Engine 1610 | -9/Materials | Repaired Aluminum Leg 2579 | -9/Materials | Entered another Materials area 2579 | -8/Materials | Evolved 2 slots: Utility x2 2770 | -8/Materials | Repaired Aluminum Leg 2797 | -8/Materials | Repaired Aluminum Leg 2825 | -8/Materials | Repaired Aluminum Leg 3450 | -8/Materials | Repaired Aluminum Leg 3477 | -8/Materials | Repaired Aluminum Leg 3911 | -8/Materials | Discovered new exit (range 13) 3993 | -8/Materials | Build established: Mutant 4067 | -8/Materials | Discovered new exit (range 10) 4123 | -8/Materials | Core integrity fell below 50% 4180 | -8/Materials | Lost 5 parts (1p3n1w) 4351 | -8/Materials | Identified exit to Garrison 4353 | -8/Materials | Entered Garrison 4433 | -8/Garrison | Triggered checkpoint 4474 | -8/Garrison | Build established: Scavenger-Mutant 4554 | -8/Garrison | Garrison Relay disabled 4657 | -8/Garrison | Triggered checkpoint 4809 | -8/Garrison | Lost 5 parts (1p2n1u1w) 4886 | -8/Garrison | Installed Relay Interface Framework 4895 | -8/Garrison | Discovered new exit (range 12) 5091 | -8/Garrison | Entered Materials 5316 | -8/Materials | Discovered new exit (range 8) 5439 | -8/Materials | Repaired Gauss Cannon 5479 | -8/Materials | Repaired Carbon-fiber Leg 5606 | -8/Materials | Entered Storage 5782 | -8/Storage | Repaired Carbon-fiber Leg 5826 | -8/Storage | Repaired Carbon-fiber Leg 5934 | -8/Storage | Found Prototype Launcher 5934 | -8/Storage | Identified Scatter Rocket Array 6060 | -8/Storage | Core integrity fell below 20% 6083 | -8/Storage | Met a pair of Derelict thieves 6250 | -8/Storage | Destroyed 7 combat bots 6257 | -8/Storage | Lost 4 parts (1p1n2u) 6339 | -8/Storage | Repaired Med. Reactive Plating 6401 | -8/Storage | Repaired Broken Gauss Cannon 6830 | -8/Storage | Destroyed by G-47 Trooper with Particle Gun Last Messages --------------- 06796_ G-47 Trooper destroyed. 06800_ Slug penetrates G-47 Trooper. 06806_ Slug penetrates Wall. 06806_ Slug penetrates G-47 Trooper. 06806_ Destroyed Lgt. Nuclear Core. 06806_ ALERT: Construction progress impeded, dispatching reinforcements to local area. 06809_ Slug penetrates G-47 Trooper. 06809_ G-47 Trooper destroyed. 06813_ Acquired 54 matter. 06815_ Slug penetrates Wall. 06820_ Critical hit (Burn: +37). 06821_ Slug penetrates G-47 Trooper. 06821_ K-01 Serf sends out distress signal. 06824_ Slug penetrates R-06 Scavenger. 06824_ R-06 Scavenger destroyed. 06824_ G-47 Trooper destroyed. 06824_ K-01 Serf collects debris. 06827_ Slug penetrates G-47 Trooper. 06830_ Critical hit (Burn: +37). Map ----- +----------------------------------------------------+ | ??????????????###### #??????????????? | | ????????????# #??????????????? | | ????????????# """ #??????????????? | | ????????????# """ #??????????????? | | ????????????# """ #??????????????? | | ????????????# = #######????????? | | ????????????# """ # #????????? | | ????????????# """ # #????????? | | ????????????# """ + #????????? | | ????????????# # #????????? | | ??########??#####+#### #????????? | | ??# ????### #?## ##????????? | | ??+ ##=# #??# ########??? | | " "%% #??# % # # #??? | | ??# #### #??#% # " #??? | | ??+ ????????# #??# + # #??? | | ??# ????????# #??# #T######??? | | ??? ?????????# #??# ########??? | | ??? ?????????# #??# #?????????? | | ???#+#?????????# #### #???###???? | | ???# #??????#### %## # ########### | | #### ########;% ### # T # | | % %% # # | | % % #% # | | %;[""" !! # | | +############## ### @/=""" !! # | | #????######### % #!""" !! # | | """ """ #????????????# # # | | """ """??????????????# # # | | """ """?????????????## ####### ### | | ????????????# # #?????###?? | | ????????????### *;?????????? | | ########??????????????# !%#?????????? | | #????????????????# !#?????????? | | """ #????????????????#m #?????????? | | """ ####?????????????# #?????????? | | """ """#?????????????# g[#?????????? | | R"#?????????????# *%#?????????? | | """#?????????????#%g!#?????????? | | ####?????????????# % #?????????? | | #????????????????# #?????????? | | ##########???????????? ?????????? | | ??????????? ?????????? | | ??????????? T ?????????? | | ??????????? ?????????? | | ####+##????????????# #????????? | | ? #??????????????????## ##????????? | | ??#???????????????????? ??????????? | | ??????????????????????? ? ??????????? | | ??????????????????????? ? ??????????? | +----------------------------------------------------+ Best States ------------- Heat Dissipation 50 Energy Generation 18 Energy Capacity 290 Matter Stores 300 Matter Capacity 300 Sight Range 18 Terrain Scan Range 16 Terrain Scan Density 10 Armor Coverage 300 Resistance: KI 30 Resistance: EM 15 Evasion (%) 55 Offensive Hacking 20 Item Schematics ----------------- Signal Interpreter | -9/Materials | Scanalyzed Visual Processing Unit | -9/Materials | Scanalyzed Assault Rifle | -9/Materials | Scanalyzed Hammer | -8/Materials | Scanalyzed Titanium Leg | -8/Materials | Hacked Med. Armor Plating | -8/Materials | Hacked Robot Schematics ------------------ None Fabricated ------------ Nothing Alien Tech Used ----------------- None Achievements -------------- None Challenges ------------ None Game ------ Seed ArcScanBrace Manual? 0 Play Time 01:48:48 Cumulative 44.0 hours Start 2024.05.06 @ 09:35:27 End 2024.05.06 @ 12:02:31 Sessions 1 Manual Loads 0 Difficulty Rogue Special Mode None Game No. 41 Rogue 41 Adventurer 0 Explorer 0 Win Type - Total 1 Types 1/0/0/0/0/0/0/0/0 Lore% 11 Gallery% 32 Achievement% 27 Wizard Run 0 Options --------- Layout 0 ASCII 0 Keyboard 1 Movement Numpad Keybinds 0 Fullscreen 2 Font 18/SmallcapsGlow Map View 76x50 Zoom Use 0% Tactical HUD 1 Map Filters NONE Filters NONE Steam 1 RUN: 4ef56be7-45d9-4631-810d-3c1b50823da7